[Event "FEDA International Scheveningen 2020"]
[Site "La Palma"]
[Date "2020.11.30"]
[Round "1.5"]
[White "Edouard, Romain"]
[Black "Anton Guijarro, David"]
[Result "1/2-1/2"]
[ECO "E21"]
[WhiteElo "2640"]
[BlackElo "2675"]
[Annotator "RC"]
[PlyCount "71"]
[EventDate "2020.11.29"]
[EventType "schev"]
[EventCountry "ESP"]
[SourceTitle "playchess.com"]
[Source "ChessBase"]
[SourceQuality "1"]
[TimeControl "40/5400+30:1800+30"]

1. d4 {[%emt 0:00:00]} Nf6 {[%emt 0:00:00]} 2. c4 {[%emt 0:00:00]} e6 {[%emt 0:00:00]} 3. Nc3 {[%emt 0:00:00]} Bb4 {[%emt 0:00:01]} 4. Nf3 {[%emt 0:02:05]} d5 {[%emt 0:00:34]} 5. cxd5 {[%emt 0:02:00]} exd5 {[%emt 0:00:08]} 6. Bg5 {[%emt 0:00:03]} h6 {[%emt 0:01:17]} 7. Bh4 {[%emt 0:00:04]} O-O {[%emt 0:01:06]} 8. e3 {[%emt 0:00:21]} Bf5 {[%emt 0:00:55]} 9. Ne5 {[%emt 0:00:47]} Qd6 {[%emt 0:03:08]} 10. Bxf6 {[%emt 0:03:51]} Qxf6 {[%emt 0:02:28]} 11. Bd3 {[%emt 0:00:04]} Bxd3 {[%emt 0:03:55]} 12. Qxd3 {[%emt 0:00:14]} c6 {[%emt 0:05:34]} 13. O-O {[%emt 0:04:31]} Rd8 {[%emt 0:03:28]} 14. a3 {[%emt 0:03:16]} Bd6 {[%emt 0:02:51]} 15. f4 {[%emt 0:00:27]} Nd7 {[%emt 0:02:38]} 16. b4 {[%emt 0:02:51]} Qe6 {[%emt 0:06:12]} 17. Rae1 {[%emt 0:06:14]} Nf6 {[%emt 0:07:29]} 18. Qc2 {[%emt 0:01:19]} a5 {[%emt 0:04:32]} 19. Qb3 {[%emt 0:02:00]} axb4 {[%emt 0:02:20]} 20. axb4 {[%emt 0:00:40]} Qe7 {[%emt 0:05:36]} 21. Rb1 {[%emt 0:01:53]} Ra7 {[%emt 0:07:10]} 22. b5 {[%emt 0:00:29]} Ra3 {[%emt 0:03:35]} 23. Qb2 {[%emt 0:00:23]} Rda8 {[%emt 0:01:17]} 24. bxc6 {[%emt 0:05:37]} bxc6 {[%emt 0:00:05]} 25. Rfe1 {[%emt 0:00:24]} Qe6 {[%emt 0:05:26]} 26. Ra1 {[%emt 0:01:36]} Qf5 {[%emt 0:10:12]} 27. Rxa3 {[%emt 0:01:21]} Rxa3 {[%emt 0:00:05]} 28. h3 {[%emt 0:04:15]} Ne4 {[%emt 0:04:29]} 29. g4 {[%emt 0:06:46]} Qe6 {[%emt 0:00:23]} 30. Nxe4 {[%emt 0:06:50]} dxe4 {[%emt 0:00:04]} 31. Nxc6 {[%emt 0:05:47]} Ra2 {[%emt 0:02:16]} 32. Qc3 {[%emt 0:00:26]} h5 {[%emt 0:07:44]} 33. Ra1 {[%emt 0:01:41]} hxg4 {[%emt 0:00:55]} 34. Rxa2 {[%emt 0:00:12]} Qxa2 {[%emt 0:00:03]} 35. hxg4 {[%emt 0:00:19]} Qe2 {[%emt 0:00:17]} 36. Ne5 {[%emt 0:01:14]} 1/2-1/2